Cogmind - Beta 13 @@@ ROGUE MODE // 2024.04.06 @ 19:54:23 Player: Tophor Result: Destroyed by G-34 Mercenary with Small Laser Performance ------------- Evolutions (0) 0 Regions Visited (2) 400 Robots Destroyed (17) 85 Value Destroyed (422) 422 Prototype IDs (0) 0 Alien Tech Used (0) 0 Bonus (0) 0 TOTAL SCORE: 907 Bonus ------- None Cogmind --------- Core Integrity 0/250 Matter 278/300 Energy 250/250 System Corruption 0% Temperature Cool (6) Movement Walking (120) Location -10/Mines Parts ------- > --- POWER (1) -------- Ion Engine > --- PROPULSION (2) --- Aluminum Leg Aluminum Leg > --- UTILITY (2) ------ Small Storage Unit Targeting Computer > --- WEAPON (2) ------- Light Assault Rifle Light Assault Rifle > --- INVENTORY (8) ---- Light Ion Engine Aluminum Leg Aluminum Leg Aluminum Leg Light Assault Rifle Light Assault Rifle Grenade Launcher Peak State ------------ > --- POWER ------------ Light Ion Engine > --- PROPULSION ------- Aluminum Leg Aluminum Leg > --- UTILITY ---------- Small Storage Unit Targeting Computer > --- WEAPON ----------- EM Pulse Gun Light Assault Rifle > --- INVENTORY -------- Ion Engine Aluminum Leg Aluminum Leg Light Assault Rifle Grenade Launcher [Rating: 7] Favorites ----------- Power Ion Engine Engine Ion Engine Propulsion Aluminum Leg Leg Aluminum Leg Utility Small Storage Unit Storage Small Storage Unit Processor Targeting Computer Weapon Light Assault Rifle Energy Gun EM Pulse Gun Ballistic Gun Light Assault Rifle Build | -11 -10 -10 ------- Run | Yrd Mat Min Slots Evolved . | . . . Power . | . . . Propulsion . | . . . Utility . | . . . Weapon . | . . . Parts Attached 15 | 6 9 . Power 3 | 1 2 . Engine 3 | 1 2 . Core . | . . . Reactor . | . . . Propulsion 5 | 2 3 . Treads . | . . . Leg 5 | 2 3 . Wheel . | . . . Hover . | . . . Flight . | . . . Utility 2 | 1 1 . Device . | . . . Storage 1 | 1 . . Processor 1 | . 1 . Hackware . | . . . Protection . | . . . Artifact . | . . . Weapon 5 | 2 3 . Energy Gun 1 | 1 . . Energy Cannon . | . . . Ballistic Gun 4 | 1 3 . Ballistic Cannon . | . . . Launcher . | . . . Special Weapon . | . . . Impact Weapon . | . . . Slashing Weapon . | . . . Piercing Weapon . | . . . Special Melee Weapon . | . . . Unidentified Prototypes . | . . . Parts Lost 4 | . 4 . Power 1 | . 1 . Propulsion 2 | . 2 . Utility . | . . . Weapon 1 | . 1 . Highest Loss Streak 3 | . 3 . To Critical Strikes . | . . . Average Slot Usage (%) 95 | . 93 100 Engine 13 | . 13 14 Leg 26 | . 26 28 Storage 14 | . 14 14 Processor 12 | . 11 14 Energy Gun 4 | . 5 . Ballistic Gun 23 | . 21 28 Naked Turns . | . . . Heaviest Build 13 | 11 13 12 Greatest Support 20 | 20 20 20 Greatest Overweight (x) 2 | . 2 . Average Overweight (x) . | . . . Largest Inventory Capacity 8 | 8 8 8 Average Capacity 7 | 6 8 8 Most Carried 8 | 2 8 7 Average Carried 5 | 1 5 7 Final Capacity 8 | 8 8 8 Final Carried 7 | 2 7 7 Class Distribution -------------------- 100% | Mutant Dominant Class ---------------- Mutant | -10/Materials Mutant | -10/Mines Resources | -11 -10 -10 ----------- Run | Yrd Mat Min Matter Collected 434 | 232 202 . Remotely . | . . . Salvage Created 589 | . 544 45 Parts 40 | . 38 2 Haulers Intercepted . | . . . Recyclers Shooed 1 | . 1 . Parts Field Recycled . | . . . Retrieved Matter . | . . . Parts Self-Destructed . | . . . Prevented . | . . . Kills | -11 -10 -10 ------- Run | Yrd Mat Min Combat Hostiles Destroyed 11 | . 10 1 Guns 10 | . 9 1 AOE 1 | . 1 . Classes Destroyed 6 | . 6 . Worker 1 | . 1 . Recycler 1 | . 1 . Operator 1 | . 1 . Watcher 3 | . 3 . Swarmer 3 | . 3 . Grunt 8 | . 7 1 Best Kill Streak 3 | . 3 1 Combat Bots Only 3 | . 3 1 Max Kills in Single Turn 1 | . 1 1 Gunslinging . | . . . Exploded 1 | . 1 . Melee . | . . . Uniques/NPCs Destroyed . | . . . Combat | -11 -10 -10 -------- Run | Yrd Mat Min Hostile Shots Fired 95 | . 80 15 Missed 17 | . 16 1 Damage Taken 941 | . 770 171 Core 258 | . 193 65 Absorbed by Shields . | . . . Core Remaining (%) 100 | 100 . . Volleys Fired 80 | . 69 11 Largest 2 | . 2 2 Hottest 60 | . 60 40 Shots Fired 144 | . 122 22 Gun 144 | . 122 22 Cannon . | . . . Launcher . | . . . Special . | . . . Kinetic 124 | . 102 22 Thermal . | . . . Explosive . | . . . Electromagnetic 20 | . 20 . Robot Hit Streak 12 | . 12 8 Robot Miss Streak 9 | . 9 2 Penetration Max . | . . . Secondary Targets 1 | . 1 . Max Gunslinging Chain 1 | . 1 . Shots Hit Robots 88 | . 74 14 Core Hits 38 | . 33 5 Critical Kills 1 | . 1 . Critical Parts Destroyed . | . . . Critical Strikes 2 | . 2 . Destroy 1 | . 1 . Corrupt 1 | . 1 . Melee Attacks . | . . . Impact . | . . . Slashing . | . . . Piercing . | . . . Sneak Attacks . | . . . Combat Hostiles . | . . . Follow-up Attacks . | . . . Damage Inflicted 957 | . 829 128 Guns 783 | . 664 119 Cannons . | . . . Explosions 158 | . 158 . Melee . | . . . Ramming 16 | . 7 9 Kinetic 612 | . 493 119 Thermal 158 | . 158 . Explosive . | . . . Electromagnetic 171 | . 171 . Impact . | . . . Slashing . | . . . Piercing . | . . . Highest Corruption . | . . . Average Corruption . | . . . Corruption Purged . | . . . Corruption Blocked . | . . . Overload Shots . | . . . Overflow Damage . | . . . Projectiles . | . . . Explosions . | . . . Melee . | . . . Knockbacks . | . . . Impact . | . . . Kinetic . | . . . Secondary . | . . . Self-Inflicted Damage 39 | . 39 . Shots 1 | . 1 . Rammed . | . . . Targets Rammed 4 | . 2 2 Kicked 4 | . 2 2 Crushed . | . . . Highest Temperature 100 | . 100 24 Average Temperature 24 | . 28 10 Received Heat Transfer 450 | . 351 99 Siege Activations . | . . . Robots Corrupted . | . . . Combat Hostiles . | . . . Parts Fried . | . . . Impact Corruptions . | . . . Robots Melted . | . . . Combat Hostiles . | . . . Parts Melted . | . . . Heat Transferred 150 | . 150 . Parts Sabotaged . | . . . Parts Stolen . | . . . Parts Stripped . | . . . Power Chain Reactions 2 | . 2 . Alert | -11 -10 -10 ------- Run | Yrd Mat Min Peak Influence 287 | . 287 97 Initial 67 | . . 67 Average 113 | . 136 70 Maximum Alert Level 1 | . 1 . Low Security (%) 83 | 100 77 100 Level 1 16 | . 22 . Level 2 . | . . . Level 3 . | . . . Level 4 . | . . . Level 5 . | . . . High Security . | . . . Max Security . | . . . Squads Dispatched 1 | . 1 . Investigation 1 | . 1 . Extermination . | . . . Reinforcement . | . . . Assault . | . . . Garrison . | . . . Intercept . | . . . Searches Triggered . | . . . Construction Impeded . | . . . Haulers Reinforced . | . . . Active Scanning Responses . | . . . Cargo Convoy Interrupts . | . . . Stealth | -11 -10 -10 --------- Run | Yrd Mat Min Distress Signals 3 | . 3 . Communications Jammed . | . . . Distress Signals . | . . . Times Spotted 24 | . 22 2 Peak Tracking Total 5 | . 5 2 Tactical Retreats 3 | . 3 . Traps | -11 -10 -10 ------- Run | Yrd Mat Min Traps Triggered 1 | . 1 . Indirectly . | . . . Trap Hack Attempts . | . . . Triggered . | . . . Disarmed . | . . . Reprogrammed . | . . . Reused . | . . . Traps Extracted . | . . . Installed . | . . . Triggered 1 | . 1 . Machines | -11 -10 -10 ---------- Run | Yrd Mat Min Machines Disabled 1 | . 1 . Max in Single Turn 1 | . 1 . Machines Repaired . | . . . Machines Dismantled . | . . . Machines Sabotaged . | . . . Overloaded Fab Kills . | . . . Hacking | -11 -10 -10 --------- Run | Yrd Mat Min Machines Accessed 2 | . 2 . Terminals 2 | . 2 . Fabricators . | . . . Repair Stations . | . . . Recycling Units . | . . . Scanalyzers . | . . . Garrison Access . | . . . Total Hacks 3 | . 3 . Successful 1 | . 1 . Failed 2 | . 2 . Catastrophic 1 | . 1 . Database Lockouts . | . . . Manual . | . . . Terminals 3 | . 3 . Fabricators . | . . . Repair Stations . | . . . Recycling Units . | . . . Scanalyzers . | . . . Garrison Access . | . . . Terminal Hacks 1 | . 1 . Alert Level 1 | . 1 . Fabricator Hacks . | . . . Repair Station Hacks . | . . . Recycling Unit Hacks . | . . . Scanalyzer . | . . . Garrison Access Hacks . | . . . Unauthorized Hacks . | . . . Terminals . | . . . Fabricators . | . . . Repair Stations . | . . . Recycling Units . | . . . Scanalyzers . | . . . Garrison Access . | . . . Data Cores Recovered 1 | . 1 . Used . | . . . Hacking Detections 1 | . 1 . Full Trace Events . | . . . Feedback Events . | . . . Feedback Blocked . | . . . Robot Schematics Acquired . | . . . Robots Built . | . . . Authchips . | . . . Time . | . . . Total Robot Build Rating . | . . . Part Schematics Acquired . | . . . Parts Built . | . . . Authchips . | . . . Time . | . . . Total Part Build Rating . | . . . Parts Repaired . | . . . Time . | . . . Parts Recycled . | . . . Recycled Matter . | . . . Retrieved Matter . | . . . Retrieved Components . | . . . Parts Scanalyzed . | . . . Part Schematics Acquired . | . . . Parts Damaged . | . . . Bothacking | -11 -10 -10 ------------ Run | Yrd Mat Min Used RIF Installer . | . . . Robots Hacked . | . . . Non-combat . | . . . Combat . | . . . Robot Hacks Applied . | . . . Relay Couplers Released . | . . . Fabnet Peak Effective % . | . . . Robots Rewired . | . . . Allies Hacked . | . . . Hacks Repelled . | . . . Allies | -11 -10 -10 -------- Run | Yrd Mat Min Total Allies . | . . . Largest Group . | . . . Highest-Rated Group . | . . . Highest-Rated Ally . | . . . Total Orders . | . . . Ally Attacks . | . . . Total Damage . | . . . Kills . | . . . Allies Corrupted . | . . . Allies Melted . | . . . Intel | -11 -10 -10 ------- Run | Yrd Mat Min Robot Analysis Total . | . . . Derelict Logs Recovered 1 | . . 1 Drone Launches . | . . . Drone Recoveries . | . . . Exploration | -11 -10 -10 ------------- Run | Yrd Mat Min Turns Passed 899 | 66 657 176 Spaces Moved 540 | 48 372 120 Core 4 | 3 1 . Treads . | . . . Legs 536 | 45 371 120 Wheels . | . . . Hover . | . . . Flight . | . . . Fastest Speed 50 | 50 120 120 Average Speed 120 | 115 120 120 Slowest Speed 190 | 120 190 120 Overloaded Moves . | . . . Propulsion Burnouts . | . . . Robots Hopped . | . . . Cave-ins Triggered . | . . . Exploration Rate (%) 35 | 3 65 38 Regions Visited 2 Branch Regions 1 Pre-discovered Areas 1 | . . 1 Known Exits Taken . | . . . Unknown Exits Taken 2 | 1 1 . Scrap Searched 1 | . . 1 Spaces Dug . | . . . Terrain Destroyed 6 | . 6 . Melee . | . . . Projectile . | . . . AOE 6 | . 6 . Terrain Rammed . | . . . Walls Destroyed . | . . . Machines Disabled . | . . . Actions | -11 -10 -10 --------- Run | Yrd Mat Min Total 667 | 55 478 134 Wait 16 | . 15 1 Move 538 | 47 371 120 Hop . | . . . Pick Up 11 | 2 9 . Fast Attach 6 | 6 . . Attach 5 | . 5 . Detach . | . . . Swap 4 | . 4 . Drop 3 | . 3 . Fire 80 | . 69 11 Melee . | . . . Ram . | . . . Kick 4 | . 2 2 Crush . | . . . Escape Stasis . | . . . Rewire . | . . . Trap . | . . . Miscellaneous . | . . . Route ------- -11/Scrapyard -10/Materials (discovered 2 exits: [*Min x2]) -10/Mines (discovered 1 exit: [*Mat]) History --------- Turn | Location | Event 22 | -11/Scrapyard | Discovered new exit (range 16) 67 | -11/Scrapyard | Entered Materials 67 | -10/Materials | Discovered new exit (range 14) 303 | -10/Materials | Build established: Mutant 372 | -10/Materials | Core integrity fell below 50% 409 | -10/Materials | Lost 3 parts (1p2n) 596 | -10/Materials | Discovered new exit (range 15) 724 | -10/Materials | Entered Mines 756 | -10/Mines | Learned Materials terminal intel 764 | -10/Mines | Learned location of Storage (-9) 789 | -10/Mines | Met a Derelict bent on vengeance 859 | -10/Mines | Discovered new exit (range 9) 886 | -10/Mines | Core integrity fell below 20% 900 | -10/Mines | Destroyed by G-34 Mercenary with Small Laser Last Messages --------------- K-01 Serf collects debris. Acquired derelict log, extracted data. Data stored: Materials terminal intel. A derelict emerges from the shadows: "Are any of them following you? I'm here trying to lose some heat after our second raid on Storage failed. Whatever you do stay away from that place, they've tightened security following our previous successful raids." World map updated: -9/Storage. IM-1ZR(g): "We scattered so the Unaware couldn't effectively use their advantage in numbers, and I suggest you do the same." IM-1ZR(g) slips back into the shadows. Kicked T-07 Excavator out of the way. Kicked R-06 Scavenger out of the way. Searching scrap... Found Lrg. Matter Pod. Found 18 Matter. EXIT=FOUND G-47 Trooper destroyed. R-06 Scavenger collects Imp. Heat Sink. R-06 Scavenger collects Particle Gun. Map ----- +----------------------------------------------------+ | ?????????????????????????????????????????????????? | | ?????????????????????????????????????????????????? | | ?????????????????????????????????????????????????? | | ?????????????????????????????????????????????????? | | ?????????????????????????????????????????????????# | | ????????????????????????????????????????????????## | | ???????????????????????????????????????????????## | | ??????????????????????????????????????????????## | | ????????????????????????????????????????????### | | ???????????????????????????????????????????## | | ???????????????????????????????????????????# | | ???????????????????????????????????????????# | | ???????????????????????????????????????????# | | ???????????????????????????????????????????# #### | | ???????????????????????????????????????????# #??? | | ???????????????????????????????????????????# #??? | | ???????????????????????????????????????????# #??? | | ????????????????????????????????#??????????# #### | | ??????????????????????????????? ???????????# | | ???????????????????????????##? ????????????# #### | | ??????????????????????????? ## ???????##???# #??? | | ??????????##########??????? ????????? ???# #??? | | ??????????# ??????? ?????????? ???# #??? | | ??????????# ?????? #?????????? ???# #??? | | ??????????# ###### #?????????? ???# #??? | | ??????????? """ rg@ #?????????# #### #### | | ??????????? """ < ##### ##?????????# ## | | ????????????""" ??### #??????????## ### # | | ??????????# ???# #???????????# ### | | ??????????# ???#%###???????????# ## | | ??????????#########????#%#????????????## | | ???????????????????????#!#?############ | | ???????????????????????# #?# ### | | ???????????????????????# #?# ########## #?## | | ???????????????????????# ### #????????## #??? | | ???????????????????????# #?????????## #??? | | ???????????????????????# #####??????????## #??? | | ???????????????????????# #???????????????## #?? | | ???????????????????????# #????????????????# ? | | ???????????????????????# #???????????????? | | ???????????????????????# #???????????????? | | ???????????????????????# #??????????????? | | ???????????????????????# #??????????????? | | ???????????????????????# #??????????????? | | ???????????????????????# ???????????????? ?? | | ??????????????????????? ????????????????? ???? | | ??????????????????????? ???????????????????????? | | ??????????????????????? ???????????????????????? | | ??????????????????????? #???????????????????????? | | ??????????????????????? ????????????????????????? | +----------------------------------------------------+ Best States ------------- Heat Dissipation 25 Energy Generation 10 Energy Capacity 250 Matter Stores 300 Matter Capacity 300 Sight Range 16 Terrain Scan Density 10 Evasion (%) 55 Targeting Accuracy 5 Item Schematics ----------------- None Robot Schematics ------------------ None Fabricated ------------ Nothing Alien Tech Used ----------------- None Achievements -------------- None Challenges ------------ None Game ------ Seed IonShadeShearcannon Manual? 0 Play Time 00:11:02 Cumulative 4.4 hours Start 2024.04.06 @ 19:44:56 End 2024.04.06 @ 19:54:23 Sessions 1 Manual Loads 0 Difficulty Rogue Special Mode None Game No. 6 Rogue 6 Adventurer 0 Explorer 0 Win Type - Total 0 Types 0/0/0/0/0/0/0/0/0 Lore% 6 Gallery% 7 Achievement% 8 Wizard Run 0 Options --------- Layout 0 ASCII 0 Keyboard 0 Movement Numpad Keybinds 0 Fullscreen 1 Font 18/SmallcapsGlow Map View 76x50 Zoom Use 0% Tactical HUD 0 Map Filters NONE Filters NONE Steam 1 RUN: 23704423-2d9a-4142-9bcf-9e5d783e1829